fUSD/lending_fUSD_20240109
["ID","MTS","AMOUNT","RATE_DAILY","PERIOD"]
[310936214,1704822762562,-1104.04,0.00041589,30]
[310936215,1704822762572,-500.0,0.00041589,30]
[310936216,1704822762581,-2707.71,0.00041589,30]
[310936217,1704822762590,-500.0,0.00041589,30]
[310936218,1704822762600,-500.0,0.00041589,2]
[310936219,1704822762609,-651.83,0.00041589,30]
[310936220,1704822762618,-851.87,0.00041589,30]
[310936221,1704822762628,-500.0,0.00041589,30]
[310936222,1704822762637,-708.74,0.00041589,30]
[310936223,1704822762646,-500.0,0.00041589,30]
[310936224,1704822762655,-500.0,0.00041589,30]
[310936225,1704822762664,-596.03,0.00041589,30]
[310936226,1704822762674,-1208.31,0.00041589,30]
[310936227,1704822762683,-859.98,0.00041589,30]
[310936228,1704822762692,-1009.5,0.00041589,30]
[310936229,1704822762702,-1834.86,0.00041589,30]
[310936230,1704822762711,-2228.31,0.00041589,30]
[310936231,1704822762719,-500.0,0.00041589,30]
[310936232,1704822762729,-500.0,0.00041589,30]
[310936233,1704822762738,-500.0,0.00041589,30]
[310936234,1704822762746,-850.13,0.00041589,30]
[310936235,1704822762755,-758.85,0.00041589,30]
[310936236,1704822762765,-500.0,0.00041589,30]
[310936237,1704822762774,-1653.94,0.00041589,30]
[310936238,1704822762783,-657.1,0.00041589,30]
[310936239,1704822762792,-2251.85,0.00041589,30]
[310936240,1704822762802,-1855.79,0.00041589,30]
[310936241,1704822762811,-1305.33,0.00041589,30]
[310936242,1704822762820,-500.0,0.00041589,30]
[310936243,1704822762829,-500.0,0.00041589,30]
[310936244,1704822762838,-1047.74,0.00041589,30]
[310936245,1704822762847,-500.0,0.00041589,30]
[310936246,1704822762856,-500.0,0.00041589,30]
[310936247,1704822762865,-2864.14,0.00041589,30]
[310936248,1704822762874,-500.0,0.00041589,30]
[310936249,1704822762883,-942.34,0.00041589,30]
[310936250,1704822762892,-514.02,0.00041589,30]
[310936251,1704822762901,-500.0,0.00041589,30]
[310936252,1704822762910,-1069.4,0.00041589,30]
[310936253,1704822762918,-2011.82,0.00041589,30]
[310936254,1704822762927,-1000.0,0.00041589,14]
[310936255,1704822762937,-500.0,0.00041589,30]
[310936256,1704822762946,-2179.29,0.00041589,30]
[310936257,1704822762955,-1226.36,0.00041589,30]
[310936258,1704822762964,-500.0,0.00041589,30]
[310936259,1704822762974,-500.0,0.00041589,30]
[310936260,1704822762983,-1167.82,0.00041589,30]
[310936261,1704822762992,-1543.99,0.00041589,30]
[310936262,1704822763001,-530.88107918,0.00041589,30]
[310936263,1704822763010,-650.25,0.00041589,30]
[310936264,1704822763019,-1662.23,0.00041589,30]
[310936265,1704822763028,-1333.2,0.00041589,30]
[310936266,1704822763038,-593.34,0.00041589,30]
[310936267,1704822763047,-1120.58,0.00041589,30]
[310936268,1704822763055,-1539.75,0.00041589,30]
[310936269,1704822763064,-500.0,0.00041589,30]
[310936270,1704822763073,-500.0,0.00041589,30]
[310936271,1704822763083,-577.44,0.00041589,30]
[310936272,1704822763092,-500.0,0.00041589,30]
[310936273,1704822763100,-2132.61,0.00041589,30]
[310936274,1704822763110,-2334.2,0.00041589,30]
[310936275,1704822763118,-717.62,0.00041589,30]
[310936276,1704822763128,-2030.29,0.00041589,30]
[310936277,1704822763137,-820.59,0.00041589,30]
[310936278,1704822763146,-500.0,0.00041589,30]
[310936279,1704822763155,-500.0,0.00041589,30]
[310936280,1704822763164,-500.0,0.00041589,30]
[310936281,1704822763173,-648.37,0.00041589,30]
[310936282,1704822763183,-500.0,0.00041589,30]
[310936283,1704822763192,-500.0,0.00041589,30]
[310936284,1704822763201,-2212.18,0.00041589,30]
[310936285,1704822763210,-500.0,0.00041589,30]
[310936286,1704822763219,-500.0,0.00041589,30]
[310936287,1704822763228,-500.0,0.00041589,30]
[310936288,1704822763238,-1957.26,0.00041589,30]
[310936289,1704822763247,-500.0,0.00041589,30]
[310936290,1704822763256,-500.0,0.00041589,30]
[310936291,1704822763266,-298.35443265,0.00041589,30]
[310936292,1704822763275,-500.0,0.00041589,30]
[310936293,1704822763285,-789.94,0.00041589,7]
[310936294,1704822763294,-1295.45,0.00041589,30]
[310936295,1704822763303,-524.13,0.00041589,30]
[310936296,1704822763312,-500.0,0.00041589,30]
[310936297,1704822763321,-454.99375673,0.00041589,30]
[310936298,1704822763330,-500.0,0.00041589,30]
[310936299,1704822763339,-500.0,0.00041589,30]
[310936300,1704822763348,-774.08,0.00041589,30]
[310936301,1704822763358,-1177.5,0.00041589,30]
[310936302,1704822763366,-846.58,0.00041589,30]
[310936303,1704822763376,-626.38,0.00041589,30]
[310936304,1704822763385,-1523.1,0.00041589,30]
[310936305,1704822763394,-1815.37,0.00041589,30]
[310936306,1704822763403,-1680.4,0.00041589,30]
[310936307,1704822763412,-500.0,0.00041589,30]
[310936308,1704822763422,-500.0,0.00041589,30]
[310936309,1704822763431,-1453.99,0.00041589,30]
[310936310,1704822763441,-500.0,0.00041589,30]
[310936311,1704822763450,-522.28,0.00041589,30]
[310936312,1704822763459,-741.95,0.00041589,30]
[310936313,1704822763468,-2160.84,0.00041589,30]
[310936314,1704822763478,-1117.93,0.00041589,30]
[310936315,1704822763487,-976.55,0.00041589,30]
[310936316,1704822763497,-500.0,0.00041589,30]
[310936317,1704822763511,-785.61,0.00041589,30]
[310936318,1704822763521,-602.19,0.00041589,30]
[310936319,1704822763531,-500.0,0.00041589,30]
[310936320,1704822763540,-500.0,0.00041589,30]
[310936321,1704822763548,-1722.63,0.00041589,30]
[310936322,1704822763557,-625.26,0.00041589,30]
[310936323,1704822763567,-500.0,0.00041589,30]
[310936324,1704822763576,-500.0,0.00041589,30]
[310936325,1704822763586,-1678.63,0.00041589,30]
[310936326,1704822763595,-500.0,0.00041589,30]
[310936327,1704822763604,-649.03,0.00041589,30]
[310936328,1704822763613,-534.61,0.00041589,30]
[310936329,1704822763623,-1131.06,0.00041589,30]
[310936330,1704822763632,-1859.73,0.00041589,30]
[310936331,1704822763641,-500.0,0.00041589,30]
[310936332,1704822763650,-500.0,0.00041589,30]
[310936333,1704822763659,-500.0,0.00041589,30]
[310936334,1704822763668,-2434.09,0.00041589,30]
[310936335,1704822763678,-500.0,0.00041589,30]
[310936336,1704822763687,-709.81,0.00041589,30]
[310936337,1704822763696,-500.0,0.00041589,30]
[310936338,1704822763705,-500.0,0.00041589,30]
[310936339,1704822763714,-1393.92,0.00041589,30]
[310936340,1704822763723,-2143.09,0.00041589,30]
[310936341,1704822763732,-500.0,0.00041589,30]
[310936342,1704822763741,-500.0,0.00041589,30]
[310936343,1704822763750,-1175.4,0.00041589,30]
[310936344,1704822763760,-500.0,0.00041589,30]
[310936345,1704822763769,-911.8,0.00041589,30]
[310936346,1704822763778,-1811.74,0.00041589,30]
[310936347,1704822763787,-500.0,0.00041589,30]
[310936348,1704822763797,-651.7,0.00041589,30]
[310936349,1704822763806,-1064.25,0.00041589,30]
[310936350,1704822763815,-2616.95,0.00041589,30]
[310936351,1704822763824,-500.0,0.00041589,7]
[310936352,1704822763833,-1225.92,0.00041589,30]
[310936353,1704822763842,-558.53,0.00041589,30]
[310936354,1704822763851,-867.77,0.00041589,30]
[310936355,1704822763860,-500.0,0.00041589,30]
[310936356,1704822763869,-2361.89,0.00041589,30]
[310936357,1704822763878,-1715.96,0.00041589,30]
[310936358,1704822763888,-938.31,0.00041589,30]
[310936359,1704822763896,-930.54,0.00041589,30]
[310936360,1704822763905,-3610.35,0.00041589,30]
[310936361,1704822763914,-1230.33,0.00041589,30]
[310936362,1704822763923,-500.0,0.00041589,30]
[310936363,1704822763932,-500.0,0.00041589,30]
[310936364,1704822763942,-825.9,0.00041589,30]
[310936365,1704822763951,-500.0,0.00041589,30]
[310936366,1704822763960,-1620.01,0.00041589,30]
[310936367,1704822763969,-500.0,0.00041589,30]
[310936368,1704822763979,-500.0,0.00041589,5]
[310936369,1704822763988,-47067.85,0.00041589,30]
[310936370,1704822763997,-2088.17,0.00041589,30]
[310936371,1704822764007,-772.41,0.00041589,30]
[310936372,1704822764017,-617.74,0.00041589,30]
[310936373,1704822764026,-500.0,0.00041589,30]
[310936374,1704822764035,-424.42374436,0.00041589,30]
[310936375,1704822764044,-607.62,0.00041589,30]
[310936376,1704822764053,-635.57,0.00041589,30]
[310936377,1704822764062,-639.75,0.00041589,30]
[310936378,1704822764071,-500.0,0.00041589,30]
[310936379,1704822764080,-500.0,0.00041589,30]
[310936380,1704822764090,-1279.97,0.00041589,30]
[310936381,1704822764099,-9711.74,0.00041589,30]
[310936382,1704822764108,-2008.91,0.00041589,30]
[310936383,1704822764117,-500.0,0.00041589,30]
[310936384,1704822764126,-500.0,0.00041589,30]
[310936385,1704822764135,-2385.47,0.00041589,30]
[310936386,1704822764145,-1000.0,0.00041589,30]
[310936387,1704822764155,-625.83,0.00041589,30]
[310936388,1704822764165,-500.0,0.00041589,30]
[310936389,1704822764174,-1531.31,0.00041589,30]
[310936390,1704822764184,-500.0,0.00041589,30]
[310936391,1704822764193,-500.0,0.00041589,30]
[310936392,1704822764203,-500.0,0.00041589,30]
[310936393,1704822764212,-5818.31,0.00041589,30]
[310936394,1704822764222,-504.54,0.00041589,30]
[310936395,1704822764231,-2227.07,0.00041589,30]
[310936396,1704822764241,-500.0,0.00041589,30]
[310936397,1704822764251,-500.0,0.00041589,30]
[310936398,1704822764261,-500.0,0.00041589,30]
[310936399,1704822764272,-500.0,0.00041589,30]
[310936400,1704822764282,-1067.05,0.00041589,30]
[310936401,1704822764292,-500.0,0.00041589,30]
[310936402,1704822764301,-500.0,0.00041589,30]
[310936403,1704822764311,-500.0,0.00041589,30]
[310936404,1704822764321,-1943.97,0.00041589,30]
[310936405,1704822764331,-7418.59,0.00041589,30]
[310936406,1704822764341,-500.0,0.00041589,30]
[310936407,1704822764350,-500.0,0.00041589,30]
[310936408,1704822764360,-894.02,0.00041589,30]
[310936409,1704822764369,-1912.66,0.00041589,30]
[310936410,1704822764379,-729.4,0.00041589,30]
[310936411,1704822764388,-2826.17,0.00041589,30]
[310936412,1704822764398,-746.04,0.00041589,30]
[310936413,1704822764407,-1727.15,0.00041589,30]
[310936414,1704822764417,-500.0,0.00041589,30]
[310936415,1704822764426,-500.0,0.00041589,30]
[310936416,1704822764436,-1546.34,0.00041589,30]
[310936417,1704822764445,-800.98,0.00041589,30]
[310936418,1704822764455,-1055.45,0.00041589,30]
[310936419,1704822764464,-13152.21,0.00041589,30]
[310936420,1704822764474,-500.0,0.00041589,30]
[310936421,1704822764484,-5322.78,0.00041589,30]
[310936422,1704822764494,-1631.56,0.00041589,30]
[310936423,1704822764507,-500.0,0.00041589,30]
[310936424,1704822764517,-828.04,0.00041589,30]
[310936425,1704822764527,-4266.73,0.00041589,30]
[310936426,1704822764537,-500.0,0.00041589,30]
[310936427,1704822764547,-517.04,0.00041589,30]
[310936428,1704822764557,-675.39,0.00041589,30]
[310936429,1704822764567,-2057.01,0.00041589,30]
[310936430,1704822764577,-500.0,0.00041589,30]
[310936431,1704822764586,-500.0,0.00041589,30]
[310936432,1704822764597,-500.0,0.00041589,30]
[310936433,1704822764607,-661.04,0.00041589,30]
[310936434,1704822764616,-1487.61,0.00041589,30]
[310936435,1704822764627,-1048.77,0.00041589,30]
[310936436,1704822764636,-987.57,0.00041589,30]
[310936437,1704822764646,-500.0,0.00041589,30]
[310936438,1704822764656,-1523.98,0.00041589,30]
[310936439,1704822764665,-500.0,0.00041589,30]
[310936440,1704822764675,-3937.86,0.00041589,30]
[310936441,1704822764685,-2062.34,0.00041589,30]
[310936442,1704822764695,-500.0,0.00041589,30]
[310936443,1704822764705,-500.0,0.00041589,30]
[310936444,1704822764715,-2352.32,0.00041589,30]
[310936445,1704822764724,-1972.66,0.00041589,30]
[310936446,1704822764734,-500.0,0.00041589,2]
[310936447,1704822764744,-2511.39,0.00041589,30]
[310936448,1704822764754,-851.78,0.00041589,30]
[310936449,1704822764764,-500.0,0.00041589,30]
[310936450,1704822764774,-1264.22,0.00041589,30]
[310936451,1704822764784,-500.0,0.00041589,30]
[310936452,1704822764794,-538.53481859,0.00041589,30]
[310936453,1704822764804,-635.47,0.00041589,30]
[310936454,1704822764813,-1416.21,0.00041589,30]
[310936455,1704822764823,-805.58,0.00041589,30]
[310936456,1704822764832,-500.0,0.00041589,30]
[310936457,1704822764842,-500.0,0.00041589,30]
[310936458,1704822764852,-1042.3,0.00041589,30]
[310936459,1704822764861,-500.0,0.00041589,30]
[310936460,1704822764871,-556.85,0.00041589,30]
[310936461,1704822764881,-500.0,0.00041589,30]
[310936462,1704822764892,-808.82,0.00041589,30]
[310936463,1704822764902,-544.13,0.00041589,30]
[310936464,1704822764912,-2529.67,0.00041589,30]
[310936465,1704822764922,-500.0,0.00041589,30]
[310936466,1704822764932,-3905.38,0.00041589,30]
[310936467,1704822764942,-500.0,0.00041589,30]
[310936468,1704822764952,-1707.29,0.00041589,30]
[310936469,1704822764962,-757.2,0.00041589,30]
[310936470,1704822764971,-529.59,0.00041589,30]
[310936471,1704822764982,-764.22,0.00041589,30]
[310936472,1704822764994,-3365.69,0.00041589,30]
[310936473,1704822765004,-500.0,0.00041589,30]
[310936474,1704822765014,-1808.46,0.00041589,30]
[310936475,1704822765027,-1356.84,0.00041589,30]
[310936476,1704822765037,-5165.15,0.00041589,30]
[310936477,1704822765047,-560.25225645,0.00041589,30]
[310936478,1704822765056,-3314.93,0.00041589,30]
[310936479,1704822765066,-500.0,0.00041589,30]
[310936480,1704822765075,-500.0,0.00041589,30]
[310936481,1704822765085,-7247.09,0.00041589,30]
[310936482,1704822765096,-898.87,0.00041589,30]
[310936483,1704822765106,-3230.31,0.00041589,30]
[310936484,1704822765115,-3438.41,0.00041589,30]
[310936485,1704822765125,-680.98,0.00041589,30]
[310936486,1704822765135,-260.70750594,0.00041589,30]
[310936487,1704822765145,-862.72,0.00041589,30]
[310936488,1704822765155,-875.14,0.00041589,30]
[310936489,1704822765165,-500.0,0.00041589,30]
[310936490,1704822765174,-302.43351408,0.00041589,30]
[310936491,1704822765184,-1210.42,0.00041589,30]
[310936492,1704822765194,-1426.64,0.00041589,30]
[310936493,1704822765204,-5227.95,0.00041589,30]
[310936494,1704822765214,-500.0,0.00041589,30]
[310936495,1704822765223,-500.0,0.00041589,30]
[310936496,1704822765233,-5726.55,0.00041589,30]
[310936497,1704822765243,-1300.13,0.00041589,30]
[310936498,1704822765253,-1055.87,0.00041589,30]
[310936499,1704822765262,-3378.07,0.00041589,30]
[310936500,1704822765274,-1593.8,0.00041589,30]
[310936501,1704822765285,-1104.5,0.00041589,30]
[310936502,1704822765294,-500.0,0.00041589,30]
[310936503,1704822765304,-500.0,0.00041589,30]
[310936504,1704822765314,-1163.93,0.00041589,30]
[310936505,1704822765324,-1413.79,0.00041589,30]
[310936506,1704822765333,-500.0,0.00041589,30]
[310936507,1704822765343,-1244.04,0.00041589,30]
[310936508,1704822765353,-500.0,0.00041589,30]
[310936509,1704822765363,-500.0,0.00041589,30]
[310936510,1704822765373,-571.07,0.00041589,30]
[310936511,1704822765383,-528.07,0.00041589,30]
[310936512,1704822765393,-1396.01,0.00041589,30]
[310936513,1704822765403,-13468.65,0.00041589,30]
[310936514,1704822765413,-9852.84,0.00041589,30]
[310936515,1704822765423,-1725.71,0.00041589,30]
[310936516,1704822765433,-3006.41,0.00041589,30]
[310936517,1704822765443,-3195.82,0.00041589,30]
[310936518,1704822765453,-871.18,0.00041589,30]
[310936519,1704822765463,-1303.9,0.00041589,30]
[310936520,1704822765473,-758.06,0.00041589,30]
[310936521,1704822765482,-545.63,0.00041589,30]
[310936522,1704822765492,-1287.34,0.00041589,30]
[310936523,1704822765504,-500.0,0.00041589,30]
[310936524,1704822765514,-650.5,0.00041589,30]
[310936525,1704822765525,-500.0,0.00041589,30]
[310936526,1704822765535,-203.13406038,0.00041589,30]
[310936527,1704822765545,-1252.77,0.00041589,30]
[310936528,1704822765555,-500.0,0.00041589,30]
[310936529,1704822765565,-2404.72,0.00041589,30]
[310936530,1704822765575,-7005.02,0.00041589,30]
[310936531,1704822765584,-7036.88,0.00041589,30]
[310936532,1704822765594,-564.12938461,0.00041589,30]
[310936533,1704822765605,-1784.46,0.00041589,30]
[310936534,1704822765616,-1306.72,0.00041589,30]
[310936535,1704822765626,-1363.7,0.00041589,30]
[310936536,1704822765636,-7123.04,0.00041589,30]
[310936537,1704822765646,-649.76,0.00041589,30]
[310936538,1704822765655,-500.0,0.00041589,30]
[310936539,1704822765666,-690.46,0.00041589,30]
[310936540,1704822765676,-500.0,0.00041589,30]
[310936541,1704822765687,-500.0,0.00041589,30]
[310936542,1704822765697,-500.0,0.00041589,30]
[310936543,1704822765707,-6945.36,0.00041589,30]
[310936544,1704822765717,-51842.67,0.00041589,30]
[310936545,1704822765727,-617.86,0.00041589,30]
[310936546,1704822765737,-3296.93,0.00041589,30]
[310936547,1704822765747,-7243.5,0.00041589,30]
[310936548,1704822765758,-6850.83,0.00041589,30]
[310936549,1704822765772,-1368.88,0.00041589,30]
[310936550,1704822765783,-500.0,0.00041589,30]
[310936551,1704822765795,-1123.62,0.00041589,30]
[310936552,1704822765806,-1586.08,0.00041589,30]
[310936553,1704822765816,-1722.72,0.00041589,30]
[310936554,1704822765827,-1413.35,0.00041589,30]
[310936555,1704822765837,-500.0,0.00041589,30]
[310936556,1704822765847,-500.0,0.00041589,30]
[310936557,1704822765857,-1265.95,0.00041589,30]
[310936558,1704822765867,-9412.26,0.00041589,30]
[310936559,1704822765877,-2237.24,0.00041589,30]
[310936560,1704822765888,-740.64,0.00041589,30]
[310936561,1704822765897,-1212.17,0.00041589,30]
[310936562,1704822765907,-1100.01,0.00041589,30]
[310936563,1704822765917,-1030.68,0.00041589,30]
[310936564,1704822765927,-2607.42,0.00041589,30]
[310936565,1704822765937,-4372.59,0.00041589,30]
[310936566,1704822765947,-2328.54,0.00041589,30]
[310936567,1704822765957,-500.0,0.00041589,30]
[310936568,1704822765966,-1231.33,0.00041589,30]
[310936569,1704822765977,-500.0,0.00041589,30]
[310936570,1704822765986,-1182.19,0.00041589,30]
[310936571,1704822765996,-500.0,0.00041589,30]
[310936572,1704822766006,-870.79,0.00041589,30]
[310936573,1704822766018,-500.0,0.00041589,30]
[310936574,1704822766029,-500.0,0.00041589,30]
[310936575,1704822766039,-849.27,0.00041589,30]
[310936576,1704822766049,-500.0,0.00041589,30]
[310936577,1704822766059,-8107.36,0.00041589,30]
[310936578,1704822766069,-4904.29,0.00041589,30]
[310936579,1704822766079,-1457.87,0.00041589,30]
[310936580,1704822766089,-500.0,0.00041589,30]
[310936581,1704822766099,-16320.88,0.00041589,30]
[310936582,1704822766109,-500.0,0.00041589,30]
[310936583,1704822766119,-1023.83,0.00041589,30]
[310936584,1704822766129,-1461.1,0.00041589,30]
[310936585,1704822766139,-1480.8,0.00041589,30]
[310936586,1704822766149,-16987.16,0.00041589,30]
[310936587,1704822766159,-500.0,0.00041589,30]
[310936588,1704822766169,-1217.56,0.00041589,30]
[310936589,1704822766179,-500.0,0.00041589,30]
[310936590,1704822766189,-502.98,0.00041589,30]
[310936591,1704822766200,-535.12,0.00041589,30]
[310936592,1704822766211,-2134.28,0.00041589,30]
[310936593,1704822766221,-28536.06,0.00041589,30]
[310936594,1704822766231,-562.7,0.00041589,30]
[310936595,1704822766241,-1487.63,0.00041589,30]
[310936596,1704822766252,-500.0,0.00041589,30]
[310936597,1704822766262,-20736.0,0.00041589,30]
[310936598,1704822766275,-1740.94,0.00041589,30]
[310936599,1704822766285,-692.37,0.00041589,30]
[310936600,1704822766295,-500.0,0.00041589,7]
[310936601,1704822766305,-500.0,0.00041589,30]
[310936602,1704822766315,-520.83,0.00041589,30]
[310936603,1704822766326,-500.0,0.00041589,30]
[310936604,1704822766337,-1611.71,0.00041589,30]
[310936605,1704822766348,-2765.97,0.00041589,30]
[310936606,1704822766588,-1717.39,0.00041589,30]
[310936607,1704822766598,-609.42,0.00041589,30]
[310936608,1704822766608,-2773.47,0.00041589,30]
[310936609,1704822766618,-3238.34,0.00041589,30]
[310936610,1704822766628,-1398.9,0.00041589,30]
[310936611,1704822766638,-352.79481171,0.00041589,30]
[310936612,1704822766648,-7172.21,0.00041589,30]
[310936613,1704822766658,-923.42,0.00041589,30]
[310936614,1704822766668,-500.0,0.00041589,30]
[310936615,1704822766678,-931.8,0.00041589,7]
[310936616,1704822766687,-788.36,0.00041589,30]
[310936617,1704822766697,-500.0,0.00041589,30]
[310936618,1704822766706,-809.83,0.00041589,30]
[310936619,1704822766716,-500.0,0.00041589,30]
[310936620,1704822766726,-5265.67,0.00041589,30]
[310936621,1704822766735,-524.72,0.00041589,30]
[310936622,1704822766745,-500.0,0.00041589,30]
[310936623,1704822766755,-870.53,0.00041589,30]
[310936624,1704822766765,-500.0,0.00041589,30]
[310936625,1704822766776,-1008.96,0.00041589,30]
[310936626,1704822766786,-850.11,0.00041589,30]
[310936627,1704822766796,-1779.89,0.00041589,30]
[310936628,1704822766807,-3021.98,0.00041589,30]
[310936629,1704822766816,-757.38,0.00041589,30]
[310936630,1704822766826,-1545.97,0.00041589,30]
[310936631,1704822766837,-500.0,0.00041589,30]
[310936632,1704822766846,-500.0,0.00041589,30]
[310936633,1704822766856,-648.78,0.00041589,30]
[310936634,1704822766866,-535.37,0.00041589,30]
[310936635,1704822766876,-1007.59,0.00041589,30]
[310936636,1704822766885,-414.8260588,0.00041589,30]
[310936637,1704822766895,-1272.45,0.00041589,30]
[310936638,1704822766906,-1977.41,0.00041589,30]
[310936639,1704822766916,-3559.33,0.00041589,30]
[310936640,1704822766927,-500.0,0.00041589,30]
[310936641,1704822766937,-500.0,0.00041589,30]
[310936642,1704822766947,-6393.45,0.00041589,30]
[310936643,1704822766957,-500.0,0.00041589,30]
[310936644,1704822766966,-1626.03,0.00041589,30]
[310936645,1704822766976,-500.0,0.00041589,30]
[310936646,1704822766986,-1812.16,0.00041589,30]
[310936647,1704822766995,-3116.26,0.00041589,30]
[310936648,1704822767005,-1864.75,0.00041589,30]
[310936649,1704822767015,-6814.69,0.00041589,30]
[310936650,1704822767025,-551.97,0.00041589,30]
[310936651,1704822767035,-500.0,0.00041589,30]
[310936652,1704822767045,-897.99,0.00041589,30]
[310936653,1704822767054,-903.52,0.00041589,30]
[310936654,1704822767064,-694.55,0.00041589,30]
[310936655,1704822767073,-500.0,0.00041589,30]
[310936656,1704822767083,-11065.11,0.00041589,30]
[310936657,1704822767092,-3610.81,0.00041589,30]
[310936658,1704822767101,-1400.92,0.00041589,30]
[310936659,1704822767111,-428.64,0.00041589,30]
[310936660,1704822767121,-2625.62,0.00041589,30]
[310936661,1704822767131,-5058.68,0.00041589,30]
[310936662,1704822767141,-25209.06,0.00041589,30]
[310936663,1704822767151,-637.53,0.00041589,30]
[310936664,1704822767161,-608.76,0.00041589,30]
[310936665,1704822767171,-500.0,0.00041589,30]
[310936666,1704822767180,-1756.5,0.00041589,30]
[310936667,1704822767190,-500.0,0.00041589,30]
[310936668,1704822767200,-4417.44,0.00041589,30]
[310936669,1704822767210,-4168.56,0.00041589,30]
[310936670,1704822767220,-500.0,0.00041589,30]
[310936671,1704822767230,-1928.23,0.00041589,30]
[310936672,1704822767240,-936.15,0.00041589,30]
[310936673,1704822767250,-1650.82,0.00041589,30]
[310936674,1704822767260,-500.0,0.00041589,30]
[310936675,1704822767271,-500.0,0.00041589,30]
[310936676,1704822767281,-500.0,0.00041589,30]
[310936677,1704822767291,-1403.88,0.00041589,30]
[310936678,1704822767300,-1040.11,0.00041589,30]
[310936679,1704822767310,-988.86,0.00041589,30]
[310936680,1704822767320,-2066.79,0.00041589,30]
[310936681,1704822767330,-769.02,0.00041589,30]
[310936682,1704822767340,-500.0,0.00041589,30]
[310936683,1704822767350,-3874.24,0.00041589,30]
[310936684,1704822767360,-747.93,0.00041589,30]
[310936685,1704822767370,-563.04,0.00041589,30]
[310936686,1704822767380,-500.0,0.00041589,30]
[310936687,1704822767390,-502.7,0.00041589,30]
[310936688,1704822767399,-3735.85,0.00041589,30]
[310936689,1704822767409,-1875.85,0.00041589,30]
[310936690,1704822767419,-6107.8,0.00041589,30]
[310936691,1704822767429,-1726.91,0.00041589,30]
[310936692,1704822767438,-3911.7,0.00041589,30]
[310936693,1704822767448,-914.17,0.00041589,30]
[310936694,1704822767457,-500.0,0.00041589,30]
[310936695,1704822767467,-500.0,0.00041589,30]
[310936696,1704822767476,-500.0,0.00041589,30]
[310936697,1704822767486,-500.0,0.00041589,30]
[310936698,1704822767496,-1131.67,0.00041589,30]
[310936699,1704822767508,-2215.92,0.00041589,30]
[310936700,1704822767519,-500.0,0.00041589,7]
[310936701,1704822767528,-3733.8,0.00041589,30]
[310936702,1704822767539,-2353.53,0.00041589,30]
[310936703,1704822767549,-1512.92,0.00041589,30]
[310936704,1704822767560,-1796.89,0.00041589,30]
[310936705,1704822767570,-1528.15,0.00041589,30]
[310936706,1704822767579,-4688.93,0.00041589,30]
[310936707,1704822767589,-4825.11,0.00041589,30]
[310936708,1704822767601,-2618.04,0.00041589,30]
[310936709,1704822767611,-500.0,0.00041589,15]
[310936710,1704822767622,-2560.7,0.00041589,30]
[310936711,1704822767632,-519.71,0.00041589,30]
[310936712,1704822767642,-2121.56,0.00041589,30]
[310936713,1704822767652,-500.0,0.00041589,30]